[Event "Early-Titled-Tuesday-Blitz-February-20-2024"]
[Site "Chess.com"]
[Date "2024.02.20"]
[Round "3"]
[White "artooon"]
[Black "djano"]
[Result "1-0"]
[WhiteElo "3047"]
[BlackElo "2678"]
[TimeControl "180+1"]
[EndTime "8:27:40 PST"]
[Termination "artooon won by resignation"]

1. e4 {[%clk 0:02:58.1]} 1... c5 {[%clk 0:03:00]} 2. Nf3 {[%clk 0:02:58]} 2...
Nc6 {[%clk 0:03:00.6]} 3. d4 {[%clk 0:02:57.9]} 3... cxd4 {[%clk 0:03:00.5]} 4.
Nxd4 {[%clk 0:02:58.8]} 4... g6 {[%clk 0:03:01]} 5. Nc3 {[%clk 0:02:57.2]} 5...
Bg7 {[%clk 0:03:00.8]} 6. Be3 {[%clk 0:02:56.8]} 6... Nf6 {[%clk 0:03:01]} 7.
Nxc6 {[%clk 0:02:56.6]} 7... bxc6 {[%clk 0:03:00.2]} 8. e5 {[%clk 0:02:57.1]}
8... Ng8 {[%clk 0:02:59.5]} 9. f4 {[%clk 0:02:57.6]} 9... f6 {[%clk 0:02:59.2]}
10. Bd4 {[%clk 0:02:46.5]} 10... fxe5 {[%clk 0:02:57.2]} 11. fxe5 {[%clk
0:02:44.4]} 11... Nh6 {[%clk 0:02:39.2]} 12. e6 {[%clk 0:02:35.9]} 12... O-O
{[%clk 0:02:26.8]} 13. exd7 {[%clk 0:02:28.2]} 13... Qxd7 {[%clk 0:02:19]} 14.
Bc4+ {[%clk 0:02:21.8]} 14... Kh8 {[%clk 0:02:18.4]} 15. Bxg7+ {[%clk 0:02:21]}
15... Kxg7 {[%clk 0:02:19.3]} 16. Qxd7 {[%clk 0:02:20.4]} 16... Bxd7 {[%clk
0:02:20.2]} 17. O-O-O {[%clk 0:02:18.7]} 17... Bg4 {[%clk 0:02:20.1]} 18. Rde1
{[%clk 0:02:16.9]} 18... Rae8 {[%clk 0:02:11.4]} 19. Ne4 {[%clk 0:02:16.4]}
19... Bf5 {[%clk 0:01:45.2]} 20. Nc5 {[%clk 0:02:08]} 20... e5 {[%clk 0:01:45]}
21. h3 {[%clk 0:02:02.5]} 21... Bc8 {[%clk 0:01:37.5]} 22. g4 {[%clk 0:02:02.6]}
22... Rf2 {[%clk 0:01:32.1]} 23. Nd3 {[%clk 0:01:58.3]} 23... Rg2 {[%clk
0:01:24.6]} 24. Nxe5 {[%clk 0:01:58.3]} 24... c5 {[%clk 0:01:18.2]} 25. Re3
{[%clk 0:01:46.6]} 25... Bb7 {[%clk 0:01:13.2]} 26. Rhe1 {[%clk 0:01:46.9]}
26... Rh2 {[%clk 0:00:59.8]} 27. Nd3 {[%clk 0:01:44.2]} 27... Rxe3 {[%clk
0:00:59.2]} 28. Rxe3 {[%clk 0:01:45.1]} 28... Bg2 {[%clk 0:00:53.5]} 29. Nf4
{[%clk 0:01:30.9]} 29... Kf6 {[%clk 0:00:41.6]} 30. Re2 {[%clk 0:01:17.7]} 30...
Rh1+ {[%clk 0:00:41.2]} 31. Kd2 {[%clk 0:01:18.2]} 31... Bb7 {[%clk 0:00:27.8]}
32. Ne6 {[%clk 0:01:12.1]} 32... Nf7 {[%clk 0:00:19.3]} 33. Nxc5 {[%clk
0:01:02.4]} 33... Nd6 {[%clk 0:00:15.8]} 34. Re6+ {[%clk 0:01:02]} 34... Kg5
{[%clk 0:00:14.5]} 35. Rxd6 {[%clk 0:01:02.9]} 1-0

[Event "Early-Titled-Tuesday-Blitz-February-20-2024"]
[Site "Chess.com"]
[Date "2024.02.20"]
[Round "3"]
[White "Rakhmanov_Aleksandr"]
[Black "JiaHaoxiang"]
[Result "1-0"]
[WhiteElo "2874"]
[BlackElo "2620"]
[TimeControl "180+1"]
[EndTime "8:27:42 PST"]
[Termination "Rakhmanov_Aleksandr won by checkmate"]

1. c4 {[%clk 0:02:56.8]} 1... c5 {[%clk 0:02:56.2]} 2. Nc3 {[%clk 0:02:45.9]}
2... Nf6 {[%clk 0:02:50.9]} 3. Nf3 {[%clk 0:02:45.5]} 3... b6 {[%clk 0:02:50.9]}
4. g3 {[%clk 0:02:42.3]} 4... Bb7 {[%clk 0:02:50.5]} 5. Bg2 {[%clk 0:02:42.7]}
5... e6 {[%clk 0:02:51.1]} 6. O-O {[%clk 0:02:42.3]} 6... Be7 {[%clk 0:02:51.7]}
7. d4 {[%clk 0:02:43]} 7... cxd4 {[%clk 0:02:51.8]} 8. Qxd4 {[%clk 0:02:43.8]}
8... d6 {[%clk 0:02:49.9]} 9. Bg5 {[%clk 0:02:43.3]} 9... Nbd7 {[%clk
0:02:45.3]} 10. Nb5 {[%clk 0:02:22.9]} 10... Qb8 {[%clk 0:02:40.8]} 11. Rfd1
{[%clk 0:02:20.1]} 11... e5 {[%clk 0:02:17.5]} 12. Nxd6+ {[%clk 0:01:42]} 12...
Bxd6 {[%clk 0:02:03.3]} 13. Qxd6 {[%clk 0:01:42.9]} 13... Qxd6 {[%clk
0:02:03.3]} 14. Rxd6 {[%clk 0:01:42.6]} 14... Ne4 {[%clk 0:02:03.9]} 15. Rdd1
{[%clk 0:01:04.8]} 15... Nxg5 {[%clk 0:01:34.6]} 16. Nxg5 {[%clk 0:01:04.3]}
16... Bxg2 {[%clk 0:01:34.9]} 17. Kxg2 {[%clk 0:01:05.2]} 17... Ke7 {[%clk
0:01:34.3]} 18. Nxf7 {[%clk 0:01:00.6]} 18... Rhc8 {[%clk 0:01:33.1]} 19. Nd6
{[%clk 0:00:51.6]} 19... Rc6 {[%clk 0:01:33.2]} 20. Nf5+ {[%clk 0:00:51.3]}
20... Kf6 {[%clk 0:01:32.7]} 21. Rxd7 {[%clk 0:00:47.3]} 21... Kxf5 {[%clk
0:01:33]} 22. b3 {[%clk 0:00:25.7]} 22... Kf6 {[%clk 0:01:31.1]} 23. Rad1 {[%clk
0:00:25]} 23... h6 {[%clk 0:01:25.1]} 24. Rb7 {[%clk 0:00:21.9]} 24... a6 {[%clk
0:01:19.9]} 25. Rdd7 {[%clk 0:00:21.2]} 25... g6 {[%clk 0:01:18.5]} 26. a4
{[%clk 0:00:16.9]} 26... Rf8 {[%clk 0:01:14.4]} 27. Rbc7 {[%clk 0:00:11.7]}
27... Re6 {[%clk 0:01:13.8]} 28. e4 {[%clk 0:00:10.9]} 28... Kg5 {[%clk
0:01:12]} 29. h4+ {[%clk 0:00:10.7]} 29... Kh5 {[%clk 0:01:12.3]} 30. Rf7 {[%clk
0:00:08.2]} 30... Rf6 {[%clk 0:01:12.1]} 31. Rxf8 {[%clk 0:00:08.2]} 31... Rxf8
{[%clk 0:01:12]} 32. Rc6 {[%clk 0:00:09]} 32... Rb8 {[%clk 0:01:11.7]} 33. Kh3
{[%clk 0:00:08]} 33... g5 {[%clk 0:01:08.5]} 34. g4# {[%clk 0:00:06.1]} 1-0

[Event "Early-Titled-Tuesday-Blitz-February-20-2024"]
[Site "Chess.com"]
[Date "2024.02.20"]
[Round "3"]
[White "ShazilTheGOAT2006"]
[Black "VitaliyBernadskiy"]
[Result "0-1"]
[WhiteElo "2626"]
[BlackElo "2875"]
[TimeControl "180+1"]
[EndTime "8:27:45 PST"]
[Termination "VitaliyBernadskiy won by resignation"]

1. e4 {[%clk 0:03:00.9]} 1... c5 {[%clk 0:02:59.3]} 2. Nf3 {[%clk 0:02:54.1]}
2... d6 {[%clk 0:02:59.3]} 3. Bb5+ {[%clk 0:02:54.4]} 3... Nd7 {[%clk
0:02:58.7]} 4. Ba4 {[%clk 0:02:54.3]} 4... Nf6 {[%clk 0:02:57]} 5. O-O {[%clk
0:02:54.5]} 5... e6 {[%clk 0:02:54.3]} 6. c4 {[%clk 0:02:53.8]} 6... Be7 {[%clk
0:02:53.7]} 7. Nc3 {[%clk 0:02:53.8]} 7... O-O {[%clk 0:02:53]} 8. d4 {[%clk
0:02:54.5]} 8... cxd4 {[%clk 0:02:52.1]} 9. Qxd4 {[%clk 0:02:55.4]} 9... a6
{[%clk 0:02:49.1]} 10. Rd1 {[%clk 0:02:55.6]} 10... Qa5 {[%clk 0:02:47]} 11. Rb1
{[%clk 0:02:46]} 11... Qh5 {[%clk 0:02:42.6]} 12. h3 {[%clk 0:02:45.6]} 12...
Rb8 {[%clk 0:02:32]} 13. Be3 {[%clk 0:02:45]} 13... b5 {[%clk 0:02:29.6]} 14.
cxb5 {[%clk 0:02:42.9]} 14... axb5 {[%clk 0:02:30.5]} 15. Bc2 {[%clk 0:02:41.9]}
15... b4 {[%clk 0:02:19.7]} 16. Ne2 {[%clk 0:02:41.6]} 16... Qa5 {[%clk
0:02:16.2]} 17. Ra1 {[%clk 0:02:35]} 17... Ba6 {[%clk 0:02:07.1]} 18. Ng3 {[%clk
0:02:33.9]} 18... Rfc8 {[%clk 0:02:05.7]} 19. Bd3 {[%clk 0:02:26.1]} 19... e5
{[%clk 0:01:43.3]} 20. Qa7 {[%clk 0:02:22.4]} 20... Ra8 {[%clk 0:01:43.6]} 21.
Bxa6 {[%clk 0:02:14.4]} 21... Rxa7 {[%clk 0:01:43.6]} 22. Bxc8 {[%clk
0:02:13.2]} 22... Rc7 {[%clk 0:01:43.5]} 23. Nf5 {[%clk 0:02:07.7]} 23... Bf8
{[%clk 0:01:42.7]} 24. Rac1 {[%clk 0:02:07]} 24... Nc5 {[%clk 0:01:35.8]} 25.
Bxc5 {[%clk 0:02:03]} 25... Rxc5 {[%clk 0:01:33.6]} 26. Bb7 {[%clk 0:01:59.7]}
26... Qc7 {[%clk 0:01:12.7]} 27. Rxc5 {[%clk 0:01:58]} 27... dxc5 {[%clk
0:01:06.7]} 28. Bd5 {[%clk 0:01:56.7]} 28... c4 {[%clk 0:01:07.1]} 29. Ne3
{[%clk 0:01:49.1]} 29... c3 {[%clk 0:01:06.5]} 30. bxc3 {[%clk 0:01:49.3]} 30...
bxc3 {[%clk 0:01:06.2]} 31. Rc1 {[%clk 0:01:50]} 31... Ba3 {[%clk 0:01:04.4]}
32. Rc2 {[%clk 0:01:49.8]} 32... Bb2 {[%clk 0:00:51.9]} 33. Ne1 {[%clk
0:01:43.3]} 33... Nxd5 {[%clk 0:00:48.5]} 34. Nxd5 {[%clk 0:01:42.9]} 34... Qc4
{[%clk 0:00:47]} 35. f3 {[%clk 0:01:36.5]} 35... h5 {[%clk 0:00:44.3]} 36. Kf2
{[%clk 0:01:33.6]} 36... Kh7 {[%clk 0:00:42.3]} 37. h4 {[%clk 0:01:32.7]} 37...
f5 {[%clk 0:00:42.1]} 38. Ke3 {[%clk 0:01:31.7]} 38... Qd4+ {[%clk 0:00:39.9]}
39. Ke2 {[%clk 0:01:31.6]} 39... fxe4 {[%clk 0:00:29.7]} 40. fxe4 {[%clk
0:01:31.4]} 40... Qxe4+ {[%clk 0:00:30.6]} 41. Ne3 {[%clk 0:01:31.7]} 41... Qxh4
{[%clk 0:00:29.7]} 42. Nd3 {[%clk 0:01:30.5]} 42... Qd4 {[%clk 0:00:26.6]} 43.
Nf5 {[%clk 0:01:29.5]} 43... Qe4+ {[%clk 0:00:26.3]} 44. Ne3 {[%clk 0:01:29.9]}
44... Qd4 {[%clk 0:00:24.6]} 45. a4 {[%clk 0:01:26.4]} 45... e4 {[%clk
0:00:17.2]} 46. Nxb2 {[%clk 0:01:14.7]} 46... cxb2 {[%clk 0:00:17]} 0-1

[Event "Early-Titled-Tuesday-Blitz-February-20-2024"]
[Site "Chess.com"]
[Date "2024.02.20"]
[Round "3"]
[White "falzehope0"]
[Black "Dinosaurio_1975"]
[Result "0-1"]
[WhiteElo "2404"]
[BlackElo "2612"]
[TimeControl "180+1"]
[EndTime "8:27:45 PST"]
[Termination "Dinosaurio_1975 won by resignation"]

1. d4 {[%clk 0:03:00.9]} 1... d5 {[%clk 0:02:59.3]} 2. e3 {[%clk 0:03:01.3]}
2... Nf6 {[%clk 0:02:57]} 3. Bd3 {[%clk 0:02:51.8]} 3... e6 {[%clk 0:02:56.9]}
4. f4 {[%clk 0:02:51.5]} 4... c5 {[%clk 0:02:55.7]} 5. c3 {[%clk 0:02:51.3]}
5... cxd4 {[%clk 0:02:54.1]} 6. exd4 {[%clk 0:02:51.2]} 6... Bd6 {[%clk
0:02:52.8]} 7. Nf3 {[%clk 0:02:51.4]} 7... Ne4 {[%clk 0:02:53.2]} 8. O-O {[%clk
0:02:48.9]} 8... O-O {[%clk 0:02:53.4]} 9. Ne5 {[%clk 0:02:44.3]} 9... f5 {[%clk
0:02:51.2]} 10. Nd2 {[%clk 0:02:31.6]} 10... Nc6 {[%clk 0:02:49]} 11. Qe2 {[%clk
0:02:26.7]} 11... Bd7 {[%clk 0:02:45.3]} 12. g4 {[%clk 0:02:20.1]} 12... Nxe5
{[%clk 0:02:31.1]} 13. fxe5 {[%clk 0:02:16.7]} 13... Be7 {[%clk 0:02:21]} 14.
gxf5 {[%clk 0:02:15.8]} 14... exf5 {[%clk 0:02:12]} 15. Nf3 {[%clk 0:02:13.9]}
15... Be6 {[%clk 0:02:08.8]} 16. Qg2 {[%clk 0:02:11.1]} 16... f4 {[%clk
0:02:04.1]} 17. Nd2 {[%clk 0:01:49.9]} 17... Nxd2 {[%clk 0:01:38.6]} 18. Bxd2
{[%clk 0:01:50.8]} 18... Qd7 {[%clk 0:01:38.3]} 19. Rxf4 {[%clk 0:01:38]} 19...
Rxf4 {[%clk 0:01:35.9]} 20. Bxf4 {[%clk 0:01:37]} 20... Rf8 {[%clk 0:01:35.8]}
21. Bh6 {[%clk 0:01:28.2]} 21... Bh4 {[%clk 0:01:29.8]} 22. Be3 {[%clk
0:01:00.5]} 22... Bh3 {[%clk 0:01:24]} 23. Qd2 {[%clk 0:00:57.3]} 23... Qg4+
{[%clk 0:01:21.2]} 24. Kh1 {[%clk 0:00:51.6]} 24... Qf3+ {[%clk 0:01:13.1]} 25.
Kg1 {[%clk 0:00:50.9]} 25... Qg4+ {[%clk 0:00:57.2]} 26. Kh1 {[%clk 0:00:50.8]}
26... Bf2 {[%clk 0:00:57.7]} 27. Qxf2 {[%clk 0:00:10.4]} 27... Rxf2 {[%clk
0:00:56.2]} 28. Bxh7+ {[%clk 0:00:07.9]} 28... Kxh7 {[%clk 0:00:54.9]} 29. Rg1
{[%clk 0:00:05.8]} 29... Bg2+ {[%clk 0:00:49.4]} 0-1

[Event "Early-Titled-Tuesday-Blitz-February-20-2024"]
[Site "Chess.com"]
[Date "2024.02.20"]
[Round "3"]
[White "Heinza9"]
[Black "SergioMoralesG"]
[Result "0-1"]
[WhiteElo "2300"]
[BlackElo "2562"]
[TimeControl "180+1"]
[EndTime "8:27:46 PST"]
[Termination "SergioMoralesG won on time"]

1. e4 {[%clk 0:03:00.9]} 1... c5 {[%clk 0:02:58.7]} 2. Nf3 {[%clk 0:03:00.6]}
2... e6 {[%clk 0:02:59.2]} 3. b3 {[%clk 0:03:00.1]} 3... Nc6 {[%clk 0:02:58.6]}
4. Bb2 {[%clk 0:03:00]} 4... a6 {[%clk 0:02:58.8]} 5. c4 {[%clk 0:02:57.1]} 5...
Nf6 {[%clk 0:02:57.6]} 6. e5 {[%clk 0:02:57.2]} 6... Ng4 {[%clk 0:02:57.9]} 7.
h3 {[%clk 0:02:55.2]} 7... Nh6 {[%clk 0:02:57.8]} 8. Bd3 {[%clk 0:02:51.2]} 8...
Be7 {[%clk 0:02:57.1]} 9. O-O {[%clk 0:02:48.4]} 9... O-O {[%clk 0:02:57.2]} 10.
Qe2 {[%clk 0:02:48.3]} 10... f6 {[%clk 0:02:54.3]} 11. Qe4 {[%clk 0:02:46.8]}
11... f5 {[%clk 0:02:52]} 12. Qe2 {[%clk 0:02:46]} 12... Nf7 {[%clk 0:02:49.6]}
13. Na3 {[%clk 0:02:34.1]} 13... b6 {[%clk 0:02:48.2]} 14. Rae1 {[%clk
0:02:22.7]} 14... Bb7 {[%clk 0:02:47.7]} 15. Bb1 {[%clk 0:02:19.9]} 15... Kh8
{[%clk 0:02:46.5]} 16. Nc2 {[%clk 0:02:18.3]} 16... Rg8 {[%clk 0:02:39.3]} 17.
d4 {[%clk 0:02:15.6]} 17... cxd4 {[%clk 0:02:39.4]} 18. Ncxd4 {[%clk 0:02:15.8]}
18... Qc7 {[%clk 0:02:14.7]} 19. a3 {[%clk 0:01:55.6]} 19... Nh6 {[%clk
0:02:14.2]} 20. b4 {[%clk 0:01:44]} 20... Raf8 {[%clk 0:02:13.8]} 21. h4 {[%clk
0:01:25.7]} 21... Nxd4 {[%clk 0:01:56.3]} 22. Bxd4 {[%clk 0:01:22.1]} 22... g5
{[%clk 0:01:55.3]} 23. hxg5 {[%clk 0:00:42.1]} 23... Bxg5 {[%clk 0:01:55.3]} 24.
Nxg5 {[%clk 0:00:42.3]} 24... Rxg5 {[%clk 0:01:56.2]} 25. f3 {[%clk 0:00:42.3]}
25... Rfg8 {[%clk 0:01:56.8]} 26. Rf2 {[%clk 0:00:41.7]} 26... Qc6 {[%clk
0:01:56.9]} 27. c5 {[%clk 0:00:37.3]} 27... b5 {[%clk 0:01:45.9]} 28. Kf1 {[%clk
0:00:33]} 28... Rh5 {[%clk 0:01:27.3]} 29. Kg1 {[%clk 0:00:31.5]} 29... Nf7
{[%clk 0:01:07.1]} 30. Rd1 {[%clk 0:00:19]} 30... Ng5 {[%clk 0:01:04.3]} 31.
Bxf5 {[%clk 0:00:11.9]} 31... Nxf3+ {[%clk 0:01:00.2]} 32. Rxf3 {[%clk
0:00:10.4]} 32... Qxf3 {[%clk 0:01:00]} 33. Qxf3 {[%clk 0:00:10]} 33... Bxf3
{[%clk 0:01:00.9]} 34. Rd3 {[%clk 0:00:06.9]} 34... Rxf5 {[%clk 0:01:00.2]} 0-1

[Event "Early-Titled-Tuesday-Blitz-February-20-2024"]
[Site "Chess.com"]
[Date "2024.02.20"]
[Round "3"]
[White "dosto07"]
[Black "Chemim21"]
[Result "1-0"]
[WhiteElo "2499"]
[BlackElo "2223"]
[TimeControl "180+1"]
[EndTime "8:27:46 PST"]
[Termination "dosto07 won on time"]

1. e4 {[%clk 0:03:00.9]} 1... e6 {[%clk 0:02:40.9]} 2. d4 {[%clk 0:03:00.5]}
2... d5 {[%clk 0:02:40.8]} 3. Nd2 {[%clk 0:03:00.8]} 3... dxe4 {[%clk
0:02:36.2]} 4. Nxe4 {[%clk 0:03:00.4]} 4... Qd5 {[%clk 0:02:36.2]} 5. Nc3 {[%clk
0:02:52.3]} 5... Bb4 {[%clk 0:02:35.1]} 6. Nf3 {[%clk 0:02:52.2]} 6... Nf6
{[%clk 0:02:33.6]} 7. Bd3 {[%clk 0:02:51.8]} 7... Ne4 {[%clk 0:02:27.5]} 8. O-O
{[%clk 0:02:41.5]} 8... Nxc3 {[%clk 0:02:23.7]} 9. bxc3 {[%clk 0:02:41.7]} 9...
Bxc3 {[%clk 0:02:24]} 10. Rb1 {[%clk 0:02:33.6]} 10... Qxa2 {[%clk 0:02:07.3]}
11. Rb3 {[%clk 0:02:18.3]} 11... Qa5 {[%clk 0:01:50.6]} 12. Ba3 {[%clk 0:02:02]}
12... Nc6 {[%clk 0:01:37.4]} 13. d5 {[%clk 0:01:51.4]} 13... exd5 {[%clk
0:01:29]} 14. Qe2+ {[%clk 0:01:50.6]} 14... Be6 {[%clk 0:01:25.9]} 15. Bb5
{[%clk 0:01:11.8]} 15... O-O-O {[%clk 0:00:46.6]} 16. Bxc6 {[%clk 0:01:02.4]}
16... bxc6 {[%clk 0:00:45.4]} 17. Rfb1 {[%clk 0:00:53.3]} 17... Bf6 {[%clk
0:00:27.2]} 18. Ne5 {[%clk 0:00:44]} 18... Bxe5 {[%clk 0:00:15.7]} 19. Qxe5
{[%clk 0:00:44]} 19... Kd7 {[%clk 0:00:16.3]} 20. Rb7 {[%clk 0:00:35]} 20... Rc8
{[%clk 0:00:03.2]} 21. Qd6+ {[%clk 0:00:32.5]} 1-0

[Event "Early-Titled-Tuesday-Blitz-February-20-2024"]
[Site "Chess.com"]
[Date "2024.02.20"]
[Round "3"]
[White "Schachmalanders"]
[Black "bescmelasti"]
[Result "0-1"]
[WhiteElo "2454"]
[BlackElo "2658"]
[TimeControl "180+1"]
[EndTime "8:27:47 PST"]
[Termination "bescmelasti won by resignation"]

1. e4 {[%clk 0:03:00.9]} 1... c5 {[%clk 0:02:57]} 2. Nc3 {[%clk 0:03:00.4]} 2...
e6 {[%clk 0:02:56.3]} 3. g3 {[%clk 0:02:59.8]} 3... Nc6 {[%clk 0:02:56.6]} 4.
Bg2 {[%clk 0:02:59.8]} 4... g6 {[%clk 0:02:55.9]} 5. Nge2 {[%clk 0:02:58.7]}
5... Bg7 {[%clk 0:02:56.2]} 6. d3 {[%clk 0:02:59.3]} 6... Nge7 {[%clk
0:02:56.2]} 7. Be3 {[%clk 0:02:59.9]} 7... d6 {[%clk 0:02:45.6]} 8. Qd2 {[%clk
0:02:59.7]} 8... h5 {[%clk 0:02:43.7]} 9. d4 {[%clk 0:02:57]} 9... cxd4 {[%clk
0:02:40.4]} 10. Nxd4 {[%clk 0:02:55.4]} 10... a6 {[%clk 0:02:23.5]} 11. O-O-O
{[%clk 0:02:47.4]} 11... Ne5 {[%clk 0:02:08.9]} 12. Qe2 {[%clk 0:02:23.9]} 12...
Qc7 {[%clk 0:02:05.6]} 13. f4 {[%clk 0:02:17]} 13... Nc4 {[%clk 0:02:05.7]} 14.
Ndb5 {[%clk 0:02:10]} 14... axb5 {[%clk 0:02:01.6]} 15. Nxb5 {[%clk 0:02:10.4]}
15... Bxb2+ {[%clk 0:01:11]} 16. Kb1 {[%clk 0:02:08.7]} 16... Na3+ {[%clk
0:01:07.3]} 17. Kxb2 {[%clk 0:02:07.1]} 17... Nxb5 {[%clk 0:01:08.2]} 18. Qxb5+
{[%clk 0:02:06.6]} 18... Bd7 {[%clk 0:01:08.8]} 19. Qb6 {[%clk 0:02:04.3]} 19...
Qc4 {[%clk 0:01:02.1]} 20. Qb3 {[%clk 0:02:01.5]} 20... Qa6 {[%clk 0:00:49.7]}
21. f5 {[%clk 0:01:35.2]} 21... O-O {[%clk 0:00:43.2]} 22. f6 {[%clk 0:01:29.5]}
22... Nc6 {[%clk 0:00:42.5]} 23. Rxd6 {[%clk 0:01:29.5]} 23... Qe2 {[%clk
0:00:29.1]} 24. Bh3 {[%clk 0:01:21.5]} 24... Na5 {[%clk 0:00:27.2]} 25. Qd3
{[%clk 0:01:01.5]} 25... Nc4+ {[%clk 0:00:26.4]} 26. Kc3 {[%clk 0:01:01.9]}
26... Ra3+ {[%clk 0:00:22.7]} 27. Kxc4 {[%clk 0:01:02.4]} 27... Rxd3 {[%clk
0:00:18.4]} 28. Rxd3 {[%clk 0:01:03.3]} 28... Rc8+ {[%clk 0:00:12.1]} 29. Kd4
{[%clk 0:01:02.4]} 29... Bb5 {[%clk 0:00:07.5]} 30. Rhd1 {[%clk 0:00:51.6]}
30... Bxd3 {[%clk 0:00:07.3]} 31. Rxd3 {[%clk 0:00:52.2]} 31... Rd8+ {[%clk
0:00:07.5]} 32. Kc3 {[%clk 0:00:51.8]} 32... Rxd3+ {[%clk 0:00:08]} 33. cxd3
{[%clk 0:00:52.5]} 33... Qxe3 {[%clk 0:00:08.6]} 0-1

[Event "Early-Titled-Tuesday-Blitz-February-20-2024"]
[Site "Chess.com"]
[Date "2024.02.20"]
[Round "3"]
[White "Statham_01"]
[Black "Karina_Ivanova"]
[Result "1-0"]
[WhiteElo "2552"]
[BlackElo "2282"]
[TimeControl "180+1"]
[EndTime "8:27:48 PST"]
[Termination "Statham_01 won by checkmate"]

1. e4 {[%clk 0:03:00.9]} 1... e6 {[%clk 0:02:54.8]} 2. d4 {[%clk 0:03:00.7]}
2... d5 {[%clk 0:02:51.9]} 3. Nc3 {[%clk 0:03:00.7]} 3... dxe4 {[%clk
0:02:49.6]} 4. Nxe4 {[%clk 0:03:01.2]} 4... Nd7 {[%clk 0:02:48]} 5. Nf3 {[%clk
0:03:00.5]} 5... Ngf6 {[%clk 0:02:46.9]} 6. Bg5 {[%clk 0:03:00.8]} 6... Be7
{[%clk 0:02:45.2]} 7. Bxf6 {[%clk 0:03:01.2]} 7... Nxf6 {[%clk 0:02:44.3]} 8.
Bd3 {[%clk 0:03:01.8]} 8... Nxe4 {[%clk 0:02:38.5]} 9. Bxe4 {[%clk 0:03:02.7]}
9... c5 {[%clk 0:02:37.3]} 10. Qe2 {[%clk 0:03:01]} 10... O-O {[%clk 0:02:27.1]}
11. O-O-O {[%clk 0:03:00.7]} 11... Qa5 {[%clk 0:02:19.9]} 12. Kb1 {[%clk
0:02:58.4]} 12... Rb8 {[%clk 0:02:17.5]} 13. h4 {[%clk 0:02:56.7]} 13... cxd4
{[%clk 0:02:05.8]} 14. Rxd4 {[%clk 0:02:23]} 14... Bf6 {[%clk 0:01:55.5]} 15.
Rd3 {[%clk 0:02:18]} 15... b6 {[%clk 0:01:45.1]} 16. Ng5 {[%clk 0:02:17.8]}
16... g6 {[%clk 0:01:36.4]} 17. Nxh7 {[%clk 0:01:48.2]} 17... Kxh7 {[%clk
0:01:32.9]} 18. h5 {[%clk 0:01:48.5]} 18... Kg7 {[%clk 0:01:18.8]} 19. hxg6
{[%clk 0:01:43.5]} 19... fxg6 {[%clk 0:01:17.2]} 20. f4 {[%clk 0:00:24.9]} 20...
Ba6 {[%clk 0:01:01.6]} 21. Rd7+ {[%clk 0:00:20]} 21... Rf7 {[%clk 0:00:57.9]}
22. Qg4 {[%clk 0:00:11.7]} 22... Bg5 {[%clk 0:00:48.6]} 23. Rxf7+ {[%clk
0:00:09.8]} 23... Kxf7 {[%clk 0:00:48.3]} 24. Rh7+ {[%clk 0:00:07.6]} 24... Kg8
{[%clk 0:00:46.8]} 25. Qxe6+ {[%clk 0:00:05.6]} 25... Kxh7 {[%clk 0:00:45.5]}
26. Qxg6+ {[%clk 0:00:05.5]} 26... Kh8 {[%clk 0:00:45.2]} 27. Qh7# {[%clk
0:00:06.2]} 1-0

[Event "Early-Titled-Tuesday-Blitz-February-20-2024"]
[Site "Chess.com"]
[Date "2024.02.20"]
[Round "3"]
[White "wonderfultime"]
[Black "Korchmar_Vasiliy"]
[Result "1-0"]
[WhiteElo "3070"]
[BlackElo "2770"]
[TimeControl "180+1"]
[EndTime "8:27:50 PST"]
[Termination "wonderfultime won by resignation"]

1. d4 {[%clk 0:03:00.9]} 1... d5 {[%clk 0:02:59.1]} 2. Nf3 {[%clk 0:03:01]} 2...
Nf6 {[%clk 0:02:58.8]} 3. Bf4 {[%clk 0:02:59.9]} 3... Bf5 {[%clk 0:02:56.4]} 4.
c4 {[%clk 0:02:59]} 4... e6 {[%clk 0:02:54.2]} 5. Qb3 {[%clk 0:02:59.3]} 5...
Nc6 {[%clk 0:02:48.9]} 6. e3 {[%clk 0:02:56.5]} 6... Bxb1 {[%clk 0:02:44]} 7.
Rxb1 {[%clk 0:02:55.4]} 7... Bb4+ {[%clk 0:02:44.1]} 8. Kd1 {[%clk 0:02:55.6]}
8... Ne4 {[%clk 0:02:40.3]} 9. Bg3 {[%clk 0:02:42.8]} 9... dxc4 {[%clk
0:02:20.5]} 10. Bxc4 {[%clk 0:02:39.7]} 10... O-O {[%clk 0:01:57.8]} 11. Bd3
{[%clk 0:02:35.4]} 11... Nf6 {[%clk 0:01:32.2]} 12. Ke2 {[%clk 0:02:34.7]} 12...
Rb8 {[%clk 0:01:28.1]} 13. Rhd1 {[%clk 0:02:12]} 13... Bd6 {[%clk 0:01:28.4]}
14. Rbc1 {[%clk 0:02:08.2]} 14... Qe7 {[%clk 0:01:25.1]} 15. Bb1 {[%clk
0:01:08.8]} 15... e5 {[%clk 0:01:12.1]} 16. d5 {[%clk 0:01:07.9]} 16... Na5
{[%clk 0:01:01]} 17. Qc2 {[%clk 0:01:07.9]} 17... e4 {[%clk 0:00:47.3]} 18. Nd2
{[%clk 0:00:54.5]} 18... Rfe8 {[%clk 0:00:41.2]} 19. Bxd6 {[%clk 0:00:51.5]}
19... Qxd6 {[%clk 0:00:42.1]} 20. Qxc7 {[%clk 0:00:48.1]} 20... Qxd5 {[%clk
0:00:40.7]} 21. Rc5 {[%clk 0:00:46]} 21... Qe6 {[%clk 0:00:33.1]} 22. Rxa5
{[%clk 0:00:38.4]} 22... Qg4+ {[%clk 0:00:33.2]} 23. Ke1 {[%clk 0:00:39.1]}
23... Qxg2 {[%clk 0:00:33.1]} 24. Qg3 {[%clk 0:00:37]} 24... Qxg3 {[%clk
0:00:18.7]} 25. hxg3 {[%clk 0:00:37]} 25... a6 {[%clk 0:00:19.6]} 26. Ra4 {[%clk
0:00:36.5]} 26... b5 {[%clk 0:00:13.5]} 27. Rd4 {[%clk 0:00:36.7]} 1-0